bitfinex/quotes_ETHUSD_20251011
["timestamp","ask_amount","ask_price","bid_price","bid_amount"]
[1760224851044,2.118,3754.6,3754.1,1.64675343]
[1760224851251,2.118,3754.2,3753.9,12.3]
[1760224851425,1.92,3754.0,3753.9,13.53]
[1760224851630,1.92,3754.0,3753.9,16.19389621]
[1760224851631,8.884593,3754.0,3753.9,16.19389621]
[1760224852361,0.198,3754.0,3753.9,16.64359621]
[1760224852546,2.1407,3755.1,3753.9,15.46076041]
[1760224852547,0.198,3754.4,3753.9,15.46076041]
[1760224852749,0.198,3754.1,3753.9,13.53]
[1760224852932,4.250551,3754.0,3753.9,14.562]
[1760224853136,4.317648,3754.0,3753.9,14.562]
[1760224853459,1.92,3754.0,3753.9,17.22589621]
[1760224853667,1.92,3754.0,3753.9,19.64348057]
[1760224853961,1.92,3754.0,3753.9,19.21488057]
[1760224854121,1.92,3754.0,3753.9,20.44488057]
[1760224854453,1.92,3754.0,3753.9,20.87348057]
[1760224856255,1.92,3754.0,3753.9,22.10348057]
[1760224856642,1.92,3754.0,3753.9,21.67488057]
[1760224857737,1.92,3754.0,3753.9,23.33348057]
[1760224858334,2.66181529,3756.9,3753.9,23.33348057]
[1760224858335,0.2305,3755.9,3755.3,2.66289757]
[1760224858540,0.2305,3755.9,3755.2,2.662974]
[1760224858541,0.1328,3755.3,3755.2,2.662974]
[1760224858741,30.0,3755.8,3755.2,2.662974]
[1760224858961,1.92,3755.5,3755.2,3.892974]
[1760224859267,1.92,3755.5,3755.2,1.23]
[1760224859268,0.1918,3755.5,3755.2,1.23]
[1760224859457,31.92,3755.3,3755.2,1.23]
[1760224859655,30.1918,3755.3,3755.2,1.23]
[1760224859836,11.577374,3755.3,3755.2,1.23]
[1760224860037,8.118674,3755.3,3755.2,1.23]
[1760224860246,8.310474,3755.3,3755.2,1.23]
[1760224860445,8.310474,3755.3,3755.2,2.46]
[1760224860650,6.584999,3755.3,3755.2,5.122974]
[1760224860877,6.584999,3755.3,3755.2,2.46]
[1760224861023,6.584999,3755.3,3755.2,5.122974]
[1760224861024,1.92,3755.3,3755.2,5.122974]
[1760224861360,6.353266,3755.7,3755.2,2.46]
[1760224861558,30.349527,3755.3,3755.2,2.46]
[1760224861742,30.349527,3755.3,3755.2,3.69]
[1760224861743,25.28631,3755.3,3755.2,3.69]
[1760224861930,6.112791,3755.3,3755.2,3.69]
[1760224862599,1.92,3755.3,3755.2,6.352974]
[1760224862759,1.92,3755.3,3755.2,7.72604258]
[1760224863058,27.727171,3756.3,3755.8,2.66254296]
[1760224863226,2.1122,3756.2,3755.2,5.3486]
[1760224863559,2.1122,3756.2,3755.2,7.58295306]
[1760224863560,1.92,3755.6,3755.2,7.58295306]
[1760224863875,2.66242911,3756.0,3755.2,7.58295306]
[1760224863876,7.111359,3755.3,3755.2,7.58295306]
[1760224864451,7.111359,3755.3,3755.2,4.92]
[1760224864647,7.303959,3755.3,3755.2,6.15]
[1760224865189,26.3226,3755.3,3755.2,6.15]
[1760224865474,5.643558,3755.3,3755.2,8.812974]
[1760224865850,5.643558,3755.3,3755.2,6.15]
[1760224866044,5.643558,3755.3,3755.2,7.38]
[1760224866250,14.118385,3755.3,3755.2,10.042974]
[1760224866781,7.246254,3755.3,3755.2,10.042974]
[1760224866984,7.246254,3755.3,3755.2,7.38]
[1760224867149,14.899779,3755.3,3755.2,7.38]
[1760224867345,8.146712,3755.3,3755.2,8.61]
[1760224868187,1.92,3755.3,3755.2,11.272974]
[1760224868480,1.92,3755.3,3755.2,13.09517873]
[1760224868691,1.92,3755.3,3755.2,14.32517873]
[1760224868977,1.92,3755.3,3755.2,12.931574]
[1760224869676,1.921,3755.3,3755.2,12.931574]
[1760224870129,1.921,3755.3,3755.2,14.161574]
[1760224871291,1.921,3755.3,3755.2,13.732974]
[1760224871464,1.921,3755.3,3755.2,14.962974]
[1760224871780,1.921,3755.3,3755.2,15.391574]
[1760224872578,1.921,3755.3,3755.2,17.19703873]
[1760224872780,0.001,3755.3,3755.2,17.19703873]
[1760224872990,0.001,3755.3,3755.2,19.19343873]
[1760224874509,0.001,3755.3,3755.2,19.78983873]
[1760224875674,0.001,3755.3,3755.2,21.01983873]
[1760224877307,0.001,3755.3,3755.2,22.24983873]
[1760224878691,0.001,3755.3,3755.2,23.47983873]
[1760224879709,0.001,3755.3,3755.2,21.112974]
[1760224880008,0.001,3755.3,3755.2,21.541574]
[1760224880309,0.001,3755.3,3755.2,22.771574]
[1760224880609,0.001,3755.3,3755.2,22.904374]
[1760224881611,0.001,3755.3,3755.2,24.134374]
[1760224881827,0.001,3755.3,3755.2,26.81411873]
[1760224883077,0.001,3755.3,3755.2,28.04411873]
[1760224883721,0.001,3755.3,3755.2,28.54491873]
[1760224883878,0.001,3755.3,3755.2,28.67771873]
[1760224884514,0.001,3755.3,3755.2,29.90771873]
[1760224885896,0.001,3755.3,3755.2,31.13771873]
[1760224887224,0.001,3755.3,3755.2,32.36771873]
[1760224887389,0.001,3755.3,3755.2,31.73411873]
[1760224888609,0.001,3755.3,3755.2,32.96411873]
[1760224889535,0.001,3755.3,3755.2,32.83131873]
[1760224889905,0.001,3755.3,3755.2,34.06131873]
[1760224891520,0.001,3755.3,3755.2,35.29131873]
[1760224893143,0.001,3755.3,3755.2,36.52131873]
[1760224893637,0.001,3755.3,3755.2,37.15491873]
[1760224894539,0.001,3755.3,3755.2,38.38491873]
[1760224896030,0.001,3755.3,3755.2,39.61491873]
[1760224897337,0.001,3755.3,3755.2,40.84491873]
[1760224898248,0.001,3757.6,3755.3,0.6336]
[1760224898438,0.001,3757.6,3757.4,2.66134751]
[1760224898746,1.92,3757.4,3757.3,2.66147048]
[1760224898946,8.375775,3757.4,3757.3,2.66147048]
[1760224899417,9.412262,3757.4,3757.3,2.66147048]
[1760224899616,7.941876,3757.4,3757.3,2.66147048]
[1760224899816,12.449232,3757.2,3756.6,0.1328]
[1760224900035,16.462464,3757.0,3756.9,2.66169987]
[1760224900237,18.382464,3757.0,3756.9,2.66169987]
[1760224900440,1.92,3757.0,3756.9,2.66169987]
[1760224900749,19.185009,3756.7,3756.6,3.89198157]
[1760224901067,17.591009,3756.7,3756.6,1.23]
[1760224901345,14.895018,3756.7,3756.6,1.23]
[1760224901546,35.27584925,3756.7,3756.6,2.46]
[1760224901755,2.66230019,3756.2,3755.2,34.44]
[1760224901919,29.676655,3755.5,3755.2,34.44]
[1760224902119,26.26496,3755.4,3755.2,34.44]
[1760224902314,21.374782,3755.4,3755.2,34.44]
[1760224902613,18.49747318,3755.4,3755.2,34.44]
[1760224903047,5.34930309,3755.3,3755.2,28.79133264]
[1760224903230,36.10075509,3755.3,3755.2,22.60053202]
[1760224903847,36.35379032,3755.3,3755.2,22.21956976]
[1760224904060,36.35379032,3755.3,3755.2,20.98956976]
[1760224904363,36.35379032,3755.3,3755.2,16.5709024]
[1760224904860,36.35379032,3755.3,3755.2,14.95994014]
[1760224905047,36.35379032,3755.3,3755.2,11.07]
[1760224905361,36.35379032,3755.3,3755.2,9.31127278]
[1760224905560,6.35379032,3755.3,3755.2,9.31127278]
[1760224905765,36.35379032,3755.3,3755.2,10.16031052]
[1760224905980,36.35379032,3755.3,3755.2,8.93031052]
[1760224906137,36.35379032,3755.3,3755.2,3.66260542]
[1760224906336,15.834773,3754.0,3753.9,18.254]
[1760224906562,2.5536,3754.0,3753.9,18.254]
[1760224906862,18.252533,3754.0,3753.9,18.254]
[1760224907061,18.252533,3754.0,3753.9,19.484]
[1760224907062,14.196177,3754.0,3753.9,19.484]
[1760224907249,5.281866,3754.0,3753.9,22.14789621]
[1760224907632,8.370214,3754.0,3753.9,19.484]
[1760224907962,1.92,3754.0,3753.9,22.14789621]
[1760224908163,1.92,3754.0,3753.9,25.0920886]
[1760224908338,1.92,3754.0,3753.9,26.3220886]
[1760224909062,0.2034,3755.4,3753.9,26.3220886]
[1760224909248,10.274291,3755.3,3754.0,0.463]
[1760224909451,5.48751,3755.3,3754.2,2.66368334]
[1760224909766,1.92,3755.4,3754.9,2.66312378]
[1760224909933,1.92,3755.6,3754.3,0.82520445]
[1760224909934,13.844818,3755.7,3755.1,2.66304492]
[1760224910126,1.92,3755.6,3755.1,2.66298244]
[1760224910330,1.92,3755.2,3755.1,2.66298244]
[1760224910530,8.59451,3755.2,3755.1,2.66298244]
[1760224910762,5.106,3755.2,3755.1,2.66298244]
[1760224910963,10.441904,3756.3,3755.8,2.66253632]
[1760224911165,2.66242769,3757.4,3755.9,0.02662477]
[1760224911166,7.759914,3756.4,3755.9,0.02662477]
[1760224911345,20.511052,3756.7,3756.0,2.66234825]
[1760224911742,1.92,3756.6,3756.0,2.66234825]
[1760224911963,0.2046,3757.0,3756.1,0.02662335]
[1760224912149,4.711044,3756.9,3756.1,2.66226896]
[1760224912470,0.001,3757.0,3756.7,2.66187854]
[1760224912634,4.095974,3756.9,3756.7,2.66187854]
[1760224913053,1.92,3756.8,3756.7,2.66187854]
[1760224913255,9.408421,3756.8,3756.7,2.66187854]
[1760224913764,19.149069,3756.6,3756.2,0.229]
[1760224913947,0.1328,3756.5,3756.2,2.89126404]
[1760224914168,0.1328,3756.5,3756.4,2.6621233]
[1760224914594,0.1328,3756.5,3756.4,3.1141233]
[1760224914755,7.730945,3756.8,3756.7,2.66187838]
[1760224914958,1.92,3756.6,3756.2,2.66226505]
[1760224915296,7.532815,3756.4,3756.3,2.66219418]
[1760224915687,0.1328,3756.5,3756.3,2.66219418]
[1760224915991,1.92,3756.4,3756.2,1.23]
[1760224916293,24.48670285,3756.3,3756.2,1.23]
[1760224916606,25.12030285,3756.3,3756.2,1.23]
[1760224916751,36.32969808,3756.3,3756.2,2.46]
[1760224918399,36.32969808,3756.3,3756.2,3.69]
[1760224919186,36.01758462,3756.3,3756.2,3.69]
[1760224919392,33.35539044,3756.3,3756.2,3.69]
[1760224919692,35.41939418,3756.3,3756.2,3.69]
[1760224919896,36.07666285,3756.3,3756.2,4.92]
[1760224920260,50.39738431,3756.3,3756.2,4.92]
[1760224920781,36.07666285,3756.3,3756.2,4.92]
[1760224921291,36.07666285,3756.3,3756.2,6.15]
[1760224921504,36.07666285,3756.3,3756.1,1.23]
[1760224921505,0.6336,3756.0,3755.8,1.23]
[1760224921678,36.29654637,3755.9,3755.8,1.23]
[1760224922796,36.29654637,3755.9,3755.1,0.002]
[1760224922797,49.53729546,3755.2,3755.1,0.002]
[1760224922965,35.21721239,3754.3,3754.2,1.23]
[1760224923474,36.07818106,3754.3,3754.2,1.23]
[1760224924203,36.07818106,3754.3,3754.2,2.46]
[1760224924695,32.7573,3754.3,3754.2,2.46]
[1760224925066,26.051705,3754.3,3754.2,2.46]
[1760224925613,26.051705,3754.3,3754.2,3.69]
[1760224925815,32.7573,3754.3,3754.2,3.69]
[1760224925986,29.317924,3754.3,3754.2,3.69]
[1760224926729,10.190453,3754.3,3754.2,6.35368334]
[1760224926938,10.316827,3754.3,3754.2,7.58368334]
[1760224927923,11.907962,3754.3,3754.2,7.58368334]
[1760224928122,11.907962,3754.3,3754.2,4.92]
[1760224928428,7.509605,3754.3,3754.2,8.81368334]
[1760224928926,10.649969,3754.3,3754.2,8.81368334]
[1760224929225,6.193975,3754.3,3754.2,6.15]
[1760224929589,5.400975,3754.3,3754.2,8.81368334]
[1760224929786,5.400975,3754.3,3754.2,10.04368334]
[1760224929995,11.155716,3754.3,3754.2,10.04368334]
[1760224930826,9.709834,3754.3,3754.2,10.04368334]
[1760224931010,0.1328,3754.5,3754.2,9.10033289]
[1760224931212,0.1328,3754.9,3754.8,2.66325769]
[1760224931425,0.1328,3754.9,3754.8,3.14189026]
[1760224931605,12.537642,3754.9,3754.8,3.14189026]
[1760224931806,12.537642,3754.9,3754.8,2.66325769]
[1760224932007,16.280513,3754.9,3754.8,2.66325769]
[1760224932328,14.360513,3754.9,3754.8,2.66325769]
[1760224932547,6.325615,3754.9,3754.8,3.89325769]
[1760224932742,5.503366,3754.9,3754.8,5.00358579]
[1760224932897,5.14351,3754.9,3754.8,5.00358579]
[1760224933254,9.99293276,3754.9,3754.8,1.23]
[1760224933526,10.93864622,3754.9,3754.8,1.23]
[1760224933928,35.73260022,3754.9,3754.8,2.46]
[1760224935344,35.73260022,3754.9,3754.8,3.69]
[1760224936614,35.73260022,3754.9,3754.8,4.92]
[1760224937013,36.07775543,3754.9,3754.8,4.92]
[1760224937420,36.07775543,3754.9,3754.2,8.61]
[1760224937421,3.29721239,3754.3,3754.2,8.61]
[1760224937606,36.07818106,3754.3,3754.2,8.61]
[1760224938141,36.07818106,3754.3,3754.2,9.84]
[1760224938605,36.4960424,3754.3,3754.2,9.84]
[1760224938811,36.15088719,3754.3,3754.2,9.84]
[1760224939166,35.42091239,3754.3,3754.2,9.84]
[1760224939841,35.42091239,3754.3,3754.2,11.07]
[1760224940235,49.76003084,3754.3,3754.2,11.07]
[1760224940433,50.10518605,3754.3,3754.2,11.07]
[1760224941141,20.10518605,3754.3,3754.2,11.07]
[1760224941354,50.10518605,3754.3,3754.2,12.3]
[1760224942664,49.76003084,3754.3,3754.2,12.3]
[1760224942842,49.76003084,3754.3,3754.2,13.53]
[1760224944056,49.76003084,3754.3,3754.2,14.728397]
[1760224944262,49.44791738,3754.3,3754.2,14.728397]
[1760224944934,35.42091239,3754.3,3754.2,14.728397]
[1760224945402,31.03194039,3754.3,3754.2,14.728397]
[1760224945573,31.66554039,3754.3,3754.2,15.958397]
[1760224946234,35.42091239,3754.3,3754.2,15.958397]
[1760224946662,50.10518605,3754.3,3754.2,15.958397]
[1760224947030,50.10518605,3754.3,3754.2,17.188397]
[1760224947235,49.76003084,3754.3,3754.2,17.188397]
[1760224948570,26.70678,3754.3,3754.2,18.418397]
[1760224948871,29.37039239,3754.3,3754.2,18.418397]
[1760224949179,13.546942,3754.5,3754.2,18.418397]
[1760224949498,16.5151,3754.5,3754.2,18.418397]
[1760224949685,1.92,3754.4,3754.2,18.418397]
[1760224949848,23.241387,3754.6,3754.2,19.648397]
[1760224950049,23.445087,3754.6,3754.2,19.648397]
[1760224950244,0.2037,3754.5,3754.2,19.648397]
[1760224950498,21.274511,3754.3,3754.2,19.648397]
[1760224951383,31.92,3754.3,3754.2,20.878397]
[1760224951680,28.671199,3754.3,3754.2,20.878397]
[1760224952248,1.92,3754.3,3754.2,20.878397]
[1760224952450,30.289368,3754.3,3754.2,20.878397]
[1760224952647,18.434423,3754.3,3754.2,22.108397]
[1760224953052,17.909447,3754.3,3754.2,22.108397]
[1760224953495,1.92,3754.3,3754.2,22.108397]
[1760224953698,18.6698,3754.3,3754.2,22.108397]
[1760224953896,17.417693,3754.3,3754.2,22.108397]
[1760224954069,17.417693,3754.3,3754.2,23.338397]
[1760224954273,18.99608839,3754.3,3754.2,23.338397]
[1760224954478,24.94573039,3754.3,3754.2,23.338397]
[1760224954657,11.558977,3754.3,3754.2,23.338397]
[1760224954993,0.2037,3755.5,3754.3,2.66357041]
[1760224955176,0.2037,3755.5,3754.2,26.06337827]
[1760224955177,0.1328,3754.3,3754.2,26.06337827]
[1760224955378,18.044272,3754.3,3754.2,27.29337827]
[1760224955781,18.044272,3754.3,3754.2,24.568397]
[1760224955983,16.673979,3754.3,3754.2,24.568397]
[1760224956372,16.742186,3754.3,3754.2,24.568397]
[1760224956572,9.612434,3754.3,3754.2,27.23208034]
[1760224956773,6.423,3754.3,3754.2,27.70128034]
[1760224956995,6.423,3754.3,3754.2,31.18706161]
[1760224957203,4.610138,3754.3,3754.2,31.18706161]
[1760224957402,1.92,3754.3,3754.2,31.18706161]
[1760224957701,13.24697,3754.3,3754.2,31.18706161]
[1760224957914,13.24697,3754.3,3754.2,25.798397]
[1760224958259,13.24697,3754.3,3754.2,27.028397]
[1760224958460,26.230224,3754.3,3754.2,27.028397]
[1760224958661,18.622192,3754.3,3754.2,27.028397]
[1760224959366,18.317951,3754.3,3754.2,27.028397]
[1760224959566,18.317382,3754.3,3754.2,28.258397]
[1760224959909,16.468184,3754.3,3754.2,28.258397]
[1760224960608,18.629799,3754.3,3754.2,28.258397]
[1760224961192,18.629799,3754.3,3754.2,29.488397]
[1760224961193,18.833499,3754.3,3754.2,29.488397]
[1760224961377,14.798185,3754.3,3754.2,29.488397]
[1760224961585,13.661511,3754.3,3754.2,29.488397]
[1760224961768,4.366359,3754.3,3754.2,29.488397]
[1760224962582,15.307255,3754.3,3754.2,30.718397]
[1760224962995,4.214023,3754.3,3754.2,31.33872466]
[1760224963183,5.516352,3754.3,3754.2,31.77132466]
[1760224963390,0.001,3754.8,3754.6,2.6633729]
[1760224963714,0.1328,3754.6,3754.5,2.6634705]
[1760224963925,0.001,3754.8,3754.7,2.66332862]
[1760224964354,0.001,3754.8,3754.7,3.09592862]
[1760224965583,0.001,3754.8,3754.7,4.32592862]
[1760224966868,5.56915,3754.8,3754.7,1.23]
[1760224967070,4.83306,3754.8,3754.7,5.12332862]
[1760224967746,4.342,3754.8,3754.7,5.55592862]
[1760224967960,7.81943,3754.8,3754.7,5.55592862]
[1760224968365,1.921,3754.8,3754.7,6.37786839]
[1760224968564,5.636,3754.8,3754.7,7.60786839]
[1760224969693,5.636,3754.8,3754.7,6.35332862]
[1760224969893,5.636,3754.8,3754.7,7.58332862]
[1760224970059,24.145349,3754.8,3754.7,7.58332862]
[1760224970266,13.961898,3754.8,3754.7,4.92]
[1760224970567,7.172349,3754.8,3754.7,7.58332862]
[1760224970871,7.172349,3754.8,3754.7,4.92]
[1760224971195,1.921,3754.8,3754.7,4.92]
[1760224971397,5.574034,3754.8,3754.7,6.15]
[1760224972164,10.512431,3754.8,3754.7,6.15]
[1760224972359,10.157524,3754.8,3754.7,8.81332862]
[1760224972598,5.126,3754.8,3754.7,9.24592862]
[1760224972806,4.207152,3754.8,3754.7,10.9457796]
[1760224973561,17.047825,3754.8,3754.7,10.47592862]
[1760224973785,17.047825,3754.8,3754.7,10.04332862]
[1760224974298,17.047825,3754.8,3754.7,11.27332862]
[1760224974801,21.524022,3754.8,3754.7,11.27332862]
[1760224975567,21.524022,3754.8,3754.7,12.50332862]
[1760224975764,27.96736769,3754.8,3754.7,9.84]
[1760224975971,25.30411,3754.8,3754.7,9.84]
[1760224976179,11.444641,3754.8,3754.7,9.84]
[1760224976379,10.911112,3754.8,3754.7,9.84]
[1760224976689,10.911112,3754.8,3754.7,14.52139418]
[1760224976690,0.001,3754.8,3754.7,14.52139418]
[1760224976876,3.183375,3754.8,3754.7,14.06559418]
[1760224977065,3.183375,3754.8,3754.7,13.73332862]
[1760224977271,5.103375,3754.8,3754.7,13.73332862]
[1760224977601,1.921,3754.8,3754.7,13.73332862]
[1760224977766,7.617818,3754.8,3754.7,11.07]
[1760224978101,7.617818,3754.8,3754.7,13.73332862]
[1760224978600,1.921,3754.8,3754.7,14.96332862]
[1760224978800,11.204153,3754.8,3754.7,14.96332862]
[1760224979004,1.921,3754.8,3754.7,15.9353406]
[1760224979307,1.921,3754.8,3754.7,16.3911406]
[1760224980001,1.921,3754.8,3754.7,17.6211406]
[1760224981075,1.921,3754.8,3754.7,17.1653406]
[1760224981291,1.921,3754.8,3754.7,16.64912862]
[1760224981482,14.255956,3754.8,3754.7,17.87912862]
[1760224981805,5.167144,3754.8,3754.7,17.42332862]
[1760224981971,19.539091,3754.8,3754.7,14.76]
[1760224982171,6.005828,3754.8,3754.7,14.76]
[1760224982482,6.005828,3754.8,3754.7,17.87912862]
[1760224982483,1.921,3754.8,3754.7,17.87912862]
[1760224982799,5.756358,3754.8,3754.7,17.87912862]
[1760224983012,1.921,3754.8,3754.7,19.10912862]
[1760224983614,1.921,3754.8,3754.7,19.41102017]
[1760224984521,1.921,3754.8,3754.7,20.64102017]
[1760224985186,5.01178,3754.8,3754.7,19.88332862]
[1760224985683,5.01178,3754.8,3754.7,18.45]
[1760224986186,7.841638,3754.8,3754.7,21.11332862]
[1760224986518,5.997282,3754.8,3754.7,18.45]
[1760224986920,5.997282,3754.8,3754.7,21.11332862]
[1760224987127,16.310906,3754.8,3754.7,22.34332862]
[1760224987284,16.310906,3754.8,3754.7,19.68]
[1760224987620,16.508006,3754.8,3754.7,19.68]
[1760224987819,16.012875,3754.8,3754.7,19.68]
[1760224988025,13.77512,3754.8,3754.7,19.68]
[1760224988332,13.294986,3754.8,3754.7,19.68]
[1760224988510,13.294986,3754.8,3754.7,20.91]
[1760224989409,20.311294,3754.8,3754.7,20.91]
[1760224989608,23.17165169,3754.8,3754.7,20.91]
[1760224989801,20.508394,3754.8,3754.7,22.14]
[1760224990303,32.1181,3754.8,3754.7,22.14]
[1760224990521,31.70448,3754.8,3754.7,22.14]
[1760224990705,35.00133769,3754.8,3754.7,22.14]
[1760224990909,35.65860636,3754.8,3754.7,22.14]
[1760224991106,35.00133769,3754.8,3754.7,23.37]
[1760224991332,35.41495769,3754.8,3754.7,23.37]
[1760224992201,5.41495769,3754.8,3754.7,23.37]
[1760224992409,35.41495769,3754.8,3754.7,23.37]
[1760224992620,35.41495769,3754.8,3754.7,24.6]
[1760224993956,35.41495769,3754.8,3754.7,25.83]
[1760224995111,20.683227,3754.8,3754.7,27.01]
[1760224995447,32.1181,3754.8,3754.7,27.01]
[1760224996124,15.616027,3754.8,3754.7,27.01]
[1760224996446,22.045782,3754.8,3754.7,27.01]
[1760224996746,18.390282,3754.8,3754.7,28.24]
[1760224996914,16.572481,3754.8,3754.7,28.24]
[1760224997543,29.07923469,3754.8,3754.7,28.24]
[1760224997743,30.02494815,3754.8,3754.7,28.24]
[1760224997950,30.37023706,3754.8,3754.7,29.47]
[1760224998344,36.07236006,3754.8,3754.7,29.47]
[1760224999473,36.07236006,3754.8,3754.7,30.7]
[1760225000472,36.07236006,3754.8,3754.7,23.82133264]
[1760225000768,36.07236006,3754.8,3754.7,24.67037038]
[1760225001358,36.07236006,3754.8,3754.7,18.17266528]
[1760225001670,36.07236006,3754.8,3754.7,17.79170302]
[1760225001841,35.41495769,3754.8,3754.7,17.79170302]
[1760225002037,35.41495769,3754.8,3754.7,19.02170302]
[1760225003565,35.41495769,3754.8,3754.7,20.25170302]
[1760225004371,32.1181,3754.8,3754.7,20.25170302]
[1760225004566,30.415077,3754.8,3754.7,20.25170302]
[1760225004971,17.086635,3754.8,3754.7,21.48170302]
[1760225005149,19.640235,3754.8,3754.7,21.48170302]
[1760225005554,32.7517,3754.8,3754.7,21.48170302]
[1760225006091,20.649766,3754.8,3754.7,21.48170302]
[1760225006465,12.871912,3754.8,3754.7,22.71170302]
[1760225006670,3.509869,3754.8,3754.7,27.91254625]
[1760225006889,0.001,3754.8,3754.7,27.91254625]
[1760225007190,5.340215,3754.8,3754.7,27.91254625]
[1760225007576,8.643881,3754.8,3754.7,27.91254625]
[1760225007781,8.389328,3754.8,3754.7,27.91254625]
[1760225008084,8.389328,3754.8,3754.7,29.14254625]
[1760225008658,11.196328,3754.8,3754.7,29.14254625]
[1760225009189,1.921,3754.8,3754.7,29.61064625]
[1760225009395,0.001,3754.8,3754.7,30.84064625]
[1760225010268,1e-08,3755.2,3755.1,3.29664492]
[1760225010592,0.001,3755.6,3755.5,3.29636128]
[1760225010997,0.001,3755.6,3755.5,3.76446128]
[1760225011303,0.001,3755.6,3755.5,3.79108889]
[1760225011469,0.001,3755.6,3755.5,3.76446128]
[1760225011678,0.001,3756.7,3756.6,2.66198157]
[1760225011988,0.001,3756.7,3756.6,2.95479954]
[1760225012302,0.001,3756.7,3756.6,4.65289954]
[1760225012514,0.001,3756.7,3756.6,5.28649954]
[1760225012804,0.001,3756.7,3756.6,5.25987973]
[1760225013485,0.001,3756.7,3756.6,4.62627973]
[1760225013791,0.001,3756.7,3756.6,5.85627973]
[1760225015108,0.001,3756.7,3756.6,7.08627973]
[1760225016489,0.001,3756.7,3756.6,8.31627973]
[1760225017180,0.001,3756.7,3756.6,8.94987973]
[1760225018004,0.001,3756.7,3756.6,10.17987973]
[1760225019358,0.001,3756.7,3756.6,11.40987973]
[1760225020368,0.001,3756.7,3756.6,11.54267973]
[1760225020811,0.001,3756.7,3756.6,12.77267973]
[1760225022200,0.001,3756.7,3756.6,14.00267973]
[1760225023296,0.001,3757.6,3757.5,2.66134397]
[1760225023493,0.001,3757.6,3757.5,2.92747837]
[1760225023733,0.001,3757.6,3757.5,4.6350918]
[1760225024507,0.001,3757.6,3757.5,4.60847837]
[1760225025132,0.001,3757.6,3757.5,5.83847837]
[1760225025701,0.001,3757.6,3757.5,5.12134397]
[1760225026135,0.001,3757.6,3757.5,2.46]
[1760225026432,22.475192,3757.6,3757.5,3.69]
[1760225027404,32.1112,3757.6,3757.5,3.69]
[1760225027937,35.75136206,3757.6,3757.5,4.92]
[1760225029222,35.75136206,3757.6,3757.5,6.15]
[1760225030628,35.75136206,3757.6,3757.5,7.38]
[1760225031147,36.04370064,3757.6,3757.5,7.38]
[1760225032025,36.04370064,3757.6,3756.6,9.84]
[1760225032026,33.29551071,3756.7,3756.6,9.84]
[1760225032226,50.07618266,3756.7,3756.6,9.84]
[1760225033061,50.36880053,3756.7,3756.6,1e-08]
[1760225033261,49.97276231,3756.7,3756.6,1.23000001]
[1760225033452,50.61066909,3756.7,3756.6,1.23000001]
[1760225033656,50.36880053,3756.7,3756.6,1.23000001]
[1760225034540,33.29621948,3755.7,3755.2,0.002]
[1760225034873,32.5536,3755.7,3755.2,0.002]
[1760225035030,35.21621948,3755.7,3755.2,0.002]
[1760225035231,35.40781948,3755.7,3755.2,0.002]
[1760225035533,20.959759,3755.7,3755.2,0.002]
[1760225035842,5.03035,3755.7,3755.4,2.66282633]
[1760225036030,5.03035,3755.7,3755.6,1.232]
[1760225036438,2.1116,3755.7,3755.6,1.232]
[1760225036637,32.1116,3755.7,3755.6,1.232]
[1760225036836,27.997999,3755.7,3755.6,1.232]
[1760225037352,27.997999,3755.7,3755.6,2.462]
[1760225037353,1.92,3755.7,3755.6,2.462]
[1760225037556,1.92,3755.7,3755.6,5.12469038]
[1760225037751,5.613223,3755.7,3755.6,2.462]
[1760225037952,5.804823,3755.7,3755.6,2.462]
[1760225038440,4.248679,3755.7,3755.6,2.462]
[1760225038753,4.248679,3755.7,3755.6,6.35469038]
[1760225038956,4.248679,3755.7,3755.6,7.25643995]
[1760225039130,3.983437,3755.7,3755.6,7.25643995]
[1760225039335,9.638978,3755.7,3755.6,4.59374957]
[1760225039566,9.638978,3755.7,3755.6,3.692]
[1760225039778,8.239361,3755.7,3755.6,3.692]
[1760225040148,8.239361,3755.7,3755.6,4.922]
[1760225040356,8.659061,3755.7,3755.6,4.922]
[1760225040546,21.0595,3755.7,3755.6,4.922]
[1760225040856,5.75209,3755.7,3755.6,4.922]
[1760225041458,8.191551,3755.7,3755.6,4.922]
[1760225041661,8.191551,3755.7,3755.6,6.152]
[1760225041864,8.383551,3755.7,3755.6,6.152]
[1760225042462,2.112,3755.7,3755.6,6.152]
[1760225042763,30.382599,3755.7,3755.6,6.152]
[1760225042968,10.596408,3755.7,3755.6,7.382]
[1760225043169,11.016108,3755.7,3755.6,7.382]
[1760225043576,17.631253,3755.7,3755.6,7.382]
[1760225043776,17.823253,3755.7,3755.6,7.382]
[1760225044149,20.48587248,3755.7,3755.6,7.382]
[1760225044490,20.991217,3755.7,3755.6,8.612]
[1760225044866,23.84583648,3755.7,3755.6,8.612]
[1760225045392,23.21223648,3755.7,3755.6,8.612]
[1760225045694,16.046221,3755.7,3755.6,8.612]
[1760225045891,16.046221,3755.7,3755.6,9.842]
[1760225046604,1.92,3755.7,3755.6,12.96519038]
[1760225046753,4.198137,3755.7,3755.6,14.52799077]
[1760225046953,4.198137,3755.7,3755.6,11.40480039]
[1760225047154,4.198137,3755.7,3755.6,13.73469038]
[1760225047554,9.256408,3755.7,3755.6,13.73469038]
[1760225047960,1.92,3755.7,3755.6,14.19519038]
[1760225048159,4.198137,3755.7,3755.6,14.19519038]
[1760225048368,1.92,3755.7,3755.6,14.19519038]